bitfinex/quotes_BTCUSD_20250124
["timestamp","ask_amount","ask_price","bid_price","bid_amount"]
[1737698118276,0.19977401,105050.0,105040.0,0.20531027]
[1737698119167,0.095194,105050.0,105040.0,0.20531027]
[1737698120158,0.095194,105050.0,105040.0,0.19519706]
[1737698120550,0.095194,105050.0,105040.0,0.19549568]
[1737698121496,0.0994759,105050.0,105040.0,0.19549568]
[1737698123823,0.20405591,105050.0,105040.0,0.19549568]
[1737698124465,0.0994759,105050.0,105040.0,0.19549568]
[1737698128965,0.0042819,105050.0,105040.0,0.29069668]
[1737698130272,0.0994739,105050.0,105040.0,0.19549568]
[1737698130740,0.20405391,105050.0,105040.0,0.19549568]
[1737698132207,0.20405391,105050.0,105040.0,0.20562713]
[1737698132594,0.2029636,105050.0,105040.0,0.20562713]
[1737698133197,0.30031089,105050.0,105040.0,0.20562713]
[1737698134251,0.30031089,105050.0,105040.0,0.19549568]
[1737698135029,0.09838359,105050.0,105040.0,0.19549568]
[1737698138457,0.09838359,105050.0,105040.0,0.29069668]
[1737698138710,0.09838359,105050.0,105040.0,0.19549568]
[1737698138947,0.09838359,105050.0,105040.0,0.29069668]
[1737698139448,0.09838359,105050.0,105040.0,0.19549568]
[1737698142862,0.2029636,105050.0,105040.0,0.19549568]
[1737698146506,0.09838359,105050.0,105040.0,0.20564444]
[1737698147629,0.00319159,105050.0,105040.0,0.54819273]
[1737698147835,0.00319159,105050.0,105040.0,0.5778507]
[1737698148618,0.00319159,105050.0,105040.0,1.1179507]
[1737698148839,0.00319159,105050.0,105040.0,1.1129507]
[1737698149243,0.00319159,105050.0,105040.0,1.1259507]
[1737698149655,0.00319159,105050.0,105040.0,1.1219507]
[1737698150036,0.00319159,105050.0,105040.0,1.23053071]
[1737698150454,0.00319159,105050.0,105040.0,1.22153071]
[1737698150673,0.00319159,105050.0,105040.0,1.1259507]
[1737698150891,0.00319159,105050.0,105040.0,1.1356393]
[1737698151663,0.00319159,105050.0,105040.0,1.22066544]
[1737698154753,0.00319159,105050.0,105040.0,1.1356393]
[1737698160315,0.00319159,105050.0,105040.0,1.4586393]
[1737698160742,0.00319159,105050.0,105040.0,1.44849054]
[1737698162188,0.0040728,105050.0,105040.0,1.43880194]
[1737698162954,0.00319159,105050.0,105040.0,1.43880194]
[1737698163167,0.0040728,105050.0,105040.0,1.43880194]
[1737698163450,0.0040728,105050.0,105040.0,1.4489278]
[1737698164637,0.00319159,105050.0,105040.0,1.4489278]
[1737698166311,0.00319159,105050.0,105040.0,0.9088278]
[1737698166807,0.00319159,105050.0,105040.0,0.91839889]
[1737698167052,0.00319159,105050.0,105040.0,1.0229789]
[1737698167285,0.00319159,105050.0,105040.0,1.01285304]
[1737698167529,0.00319159,105050.0,105040.0,0.90827303]
[1737698167987,0.00319159,105050.0,105040.0,0.89527303]
[1737698168433,0.00319159,105050.0,105040.0,0.90827303]
[1737698168683,0.00319159,105050.0,105040.0,0.89927303]
[1737698168895,0.00319159,105050.0,105040.0,0.90427303]
[1737698169130,0.00319159,105050.0,105040.0,0.90827303]
[1737698172297,0.00319159,105050.0,105040.0,1.44837303]
[1737698175415,0.00319159,105050.0,105040.0,1.55295304]
[1737698175861,0.00319159,105050.0,105040.0,1.51688062]
[1737698178475,0.00319159,105050.0,105040.0,1.92436303]
[1737698178863,0.00319159,105050.0,105040.0,1.99287062]
[1737698181339,0.00319159,105050.0,105040.0,2.00302386]
[1737698182579,0.00319159,105050.0,105040.0,1.93451627]
[1737698182801,0.0040728,105050.0,105040.0,1.82759789]
[1737698183182,0.07169918,105050.0,105040.0,1.82759789]
[1737698183534,0.00319159,105050.0,105040.0,1.82759789]
[1737698184106,0.00319159,105050.0,105040.0,1.28749789]
[1737698186131,0.00319159,105050.0,105040.0,1.48927025]
[1737698186330,0.00319159,105050.0,105040.0,1.57462891]
[1737698186509,0.00319159,105050.0,105040.0,1.47020384]
[1737698188382,0.0040728,105050.0,105040.0,1.37285655]
[1737698188550,0.0040728,105050.0,105040.0,1.47020384]
[1737698189572,0.0040728,105050.0,105040.0,1.38484518]
[1737698189957,0.00319159,105050.0,105040.0,1.38484518]
[1737698190758,0.0040728,105050.0,105040.0,1.38484518]
[1737698194604,0.0040728,105050.0,105040.0,1.28749789]
[1737698195010,0.0040728,105050.0,105040.0,1.27734465]
[1737698200774,0.0040728,105050.0,105040.0,1.37469194]
[1737698201411,0.0040728,105050.0,105040.0,1.27734465]
[1737698201831,0.00319159,105050.0,105040.0,1.27734465]
[1737698202259,0.00319159,105050.0,105040.0,1.28748208]
[1737698203729,0.0040728,105050.0,105040.0,1.38482937]
[1737698205779,0.0040728,105050.0,105040.0,1.28748208]
[1737698206174,0.0040728,105050.0,105040.0,1.29460165]
[1737698206551,0.0040728,105050.0,105040.0,1.39194894]
[1737698208740,0.0040728,105050.0,105040.0,1.40817266]
[1737698210041,0.0040728,105050.0,105040.0,1.40105309]
[1737698211105,0.0040728,105050.0,105040.0,1.38482937]
[1737698211732,0.00505565,105050.0,105040.0,1.38482937]
[1737698216414,0.08258707,105070.0,105050.0,0.15]
[1737698216639,0.08258707,105070.0,105060.0,0.095183]
[1737698218310,0.08258707,105070.0,105060.0,0.25532043]
[1737698218495,0.08258707,105070.0,105060.0,0.26132043]
[1737698218704,0.08258707,105070.0,105060.0,0.26432043]
[1737698219889,0.15110661,105070.0,105060.0,0.26432043]
[1737698220021,0.15110661,105070.0,105060.0,0.34902986]
[1737698220982,0.08258707,105070.0,105060.0,0.34902986]
[1737698221211,0.15110661,105070.0,105060.0,0.34902986]
[1737698224911,0.15110661,105070.0,105060.0,0.34932848]
[1737698225341,0.3436279,105070.0,105060.0,0.25414548]
[1737698226015,0.3436279,105070.0,105060.0,0.24400805]
[1737698226887,0.41214744,105070.0,105060.0,0.09400805]
[1737698227117,0.41214744,105070.0,105060.0,0.00929862]
[1737698227442,0.44514744,105070.0,105060.0,0.00929862]
[1737698227643,0.50366698,105070.0,105060.0,0.00929862]
[1737698227855,0.52366698,105070.0,105060.0,0.00029862]
[1737698228039,0.52366698,105070.0,105060.0,0.00229862]
[1737698228403,0.52366698,105070.0,105060.0,0.00529862]
[1737698228634,0.118183,105060.0,105050.0,0.08537409]
[1737698228842,0.42108891,105060.0,105050.0,0.08537409]
[1737698229062,0.44108891,105060.0,105050.0,0.09394136]
[1737698229242,0.44108891,105060.0,105050.0,0.08537409]
[1737698229776,0.44453807,105060.0,105050.0,0.08537409]
[1737698230975,0.46738859,105060.0,105050.0,0.08537409]
[1737698231326,0.46738859,105060.0,105050.0,0.08637409]
[1737698231688,0.44453807,105060.0,105050.0,0.08637409]
[1737698231825,0.45453807,105060.0,105050.0,0.09504136]
[1737698232031,0.41153807,105060.0,105050.0,0.09504136]
[1737698232874,0.43153807,105060.0,105050.0,0.09504136]
[1737698233070,0.41153807,105060.0,105050.0,0.09504136]
[1737698233275,0.43042307,105060.0,105050.0,0.09504136]
[1737698233962,0.43042307,105060.0,105050.0,0.00966727]
[1737698234165,0.43042307,105060.0,105050.0,0.001]
[1737698234371,0.45342307,105060.0,105050.0,0.001]
[1737698234577,0.44342307,105060.0,105050.0,0.001]
[1737698236021,0.45342307,105060.0,105050.0,0.001]
[1737698236635,0.4628854,105060.0,105050.0,0.001]
[1737698237049,0.4628854,105060.0,105050.0,0.00129862]
[1737698238058,0.4528854,105060.0,105050.0,0.00129862]
[1737698238229,0.4298854,105060.0,105050.0,0.00129862]
[1737698238460,0.32538151,105060.0,105050.0,0.00129862]
[1737698238938,0.32516951,105060.0,105050.0,0.00129862]
[1737698239156,0.018885,105060.0,105050.0,0.09649062]
[1737698239356,0.54736024,105070.0,105060.0,0.2284]
[1737698239561,0.35916653,105070.0,105060.0,0.323583]
[1737698239871,0.4636522,105070.0,105060.0,0.2284]
[1737698240304,0.4636522,105070.0,105060.0,0.371683]
[1737698240305,0.08258707,105070.0,105060.0,0.371683]
[1737698240475,0.08258707,105070.0,105060.0,0.45369956]
[1737698241508,0.08258707,105070.0,105060.0,0.48193006]
[1737698242262,0.08258707,105070.0,105060.0,0.48293006]
[1737698243496,0.08258707,105070.0,105060.0,0.58227735]
[1737698243924,0.08258707,105070.0,105060.0,0.48493006]
[1737698244133,0.08258707,105070.0,105060.0,0.48293006]
[1737698244305,0.08258707,105070.0,105060.0,0.48593006]
[1737698244551,0.08258707,105070.0,105060.0,0.48293006]
[1737698244729,0.08258707,105070.0,105060.0,0.47993006]
[1737698245027,0.08258707,105070.0,105060.0,0.49293006]
[1737698245262,0.08258707,105070.0,105060.0,0.48393006]
[1737698245678,0.08258707,105070.0,105060.0,0.49293006]
[1737698253817,0.08258707,105070.0,105060.0,0.69478124]
[1737698254017,0.08258707,105070.0,105060.0,0.59027735]
[1737698254430,0.0002022,105080.0,105070.0,0.373474]
[1737698254687,0.0002022,105080.0,105070.0,0.41157077]
[1737698255652,0.00025153,105080.0,105070.0,0.42057077]
[1737698256065,0.00025153,105080.0,105070.0,0.44680127]
[1737698256459,0.00025153,105080.0,105070.0,0.54414856]
[1737698256662,0.00025153,105080.0,105070.0,1.40724856]
[1737698257290,0.00025153,105080.0,105070.0,1.41124856]
[1737698259712,0.00025153,105080.0,105070.0,1.53875245]
[1737698259921,0.01029862,105090.0,105080.0,0.374365]
[1737698260117,0.01029862,105090.0,105080.0,1.40225031]
[1737698261004,0.01029862,105090.0,105080.0,1.40625031]
[1737698261407,0.01029862,105090.0,105080.0,1.44148081]
[1737698262257,0.01029862,105090.0,105080.0,1.43748081]
[1737698262459,0.01029862,105090.0,105080.0,1.44148081]
[1737698263940,0.01029862,105090.0,105080.0,1.91729081]
[1737698264099,0.01021105,105090.0,105080.0,1.90114861]
[1737698268309,0.01021105,105090.0,105080.0,1.91729463]
[1737698270543,0.01021105,105090.0,105080.0,1.94678703]
[1737698272717,0.01021105,105090.0,105080.0,1.94708544]
[1737698274066,0.70730094,105100.0,105090.0,0.177956]
[1737698274272,0.70730094,105100.0,105090.0,1.01259225]
[1737698275455,0.70730094,105100.0,105090.0,1.03568055]
[1737698276209,0.70730094,105100.0,105090.0,0.90884086]
[1737698277248,0.30363213,105130.0,105120.0,0.370729]
[1737698277486,0.30412579,105130.0,105120.0,1.95197185]
[1737698277622,0.30412579,105130.0,105120.0,1.96150852]
[1737698277832,0.30412579,105130.0,105120.0,2.09601241]
[1737698278034,0.30412579,105130.0,105120.0,2.01745267]
[1737698278256,0.30412579,105130.0,105120.0,2.00039682]
[1737698278614,0.30412579,105130.0,105120.0,1.95342415]
[1737698278818,0.30412579,105130.0,105120.0,1.85792026]
[1737698279027,0.30412579,105130.0,105120.0,1.87892026]
[1737698279236,0.40862968,105130.0,105120.0,1.83146796]
[1737698279418,0.40862968,105130.0,105120.0,1.85771189]
[1737698279621,0.40862968,105130.0,105120.0,1.70771189]
[1737698280044,0.40862968,105130.0,105120.0,1.38471189]
[1737698280656,0.41309156,105130.0,105120.0,1.1972356]
[1737698280870,0.41309156,105130.0,105120.0,1.1117356]
[1737698281016,0.50821156,105130.0,105120.0,1.0666356]
[1737698281231,0.41309156,105130.0,105120.0,1.0666356]
[1737698281458,0.41309156,105130.0,105120.0,1.0626356]
[1737698281859,0.50821156,105130.0,105120.0,1.2216356]
[1737698282062,0.61271545,105130.0,105120.0,1.2126356]
[1737698282258,0.61271545,105130.0,105120.0,0.6725356]
[1737698282602,0.41309156,105130.0,105120.0,0.65629167]
[1737698282802,0.41197455,105130.0,105120.0,0.75142067]
[1737698283165,0.41177455,105130.0,105120.0,0.65629167]
[1737698283511,0.41177455,105130.0,105120.0,0.75142067]
[1737698283787,0.61139844,105130.0,105120.0,0.67853298]
[1737698283995,0.61139844,105130.0,105120.0,0.68153298]
[1737698284578,0.70888783,105130.0,105120.0,0.67553298]
[1737698285005,0.70888783,105130.0,105120.0,0.68153298]
[1737698285218,0.70888783,105130.0,105120.0,0.67253298]
[1737698285620,0.70888783,105130.0,105120.0,0.67853298]
[1737698286796,0.78728783,105130.0,105120.0,0.50489131]
[1737698287023,0.78728783,105130.0,105120.0,0.50689131]
[1737698287227,0.61154054,105130.0,105120.0,0.50689131]
[1737698287441,0.60819567,105130.0,105120.0,0.50689131]
[1737698287644,0.60819567,105130.0,105120.0,0.50489131]
[1737698287849,0.60819567,105130.0,105120.0,0.71665414]
[1737698288056,0.70554296,105130.0,105120.0,0.71865414]
[1737698288258,0.70554296,105130.0,105120.0,0.72165414]
[1737698288467,0.70554296,105130.0,105120.0,0.71865414]
[1737698288674,0.60819567,105130.0,105120.0,0.71665414]
[1737698288853,0.60819567,105130.0,105120.0,0.71965414]
[1737698289875,0.50369178,105130.0,105120.0,0.71965414]
[1737698290079,0.50369178,105130.0,105120.0,0.71665414]
[1737698290296,0.50369178,105130.0,105120.0,0.71765414]
[1737698290499,0.60819567,105130.0,105120.0,0.71765414]
[1737698290702,0.70554296,105130.0,105120.0,0.71765414]
[1737698290930,0.70554296,105130.0,105120.0,0.71665414]
[1737698291104,0.70554296,105130.0,105120.0,0.71865414]
[1737698291340,0.70554296,105130.0,105120.0,0.65389131]
[1737698291534,0.71554296,105130.0,105120.0,0.50689131]
[1737698291833,0.71554296,105130.0,105120.0,0.48574246]
[1737698291971,0.71554296,105130.0,105120.0,0.48674246]
[1737698292806,0.71554296,105130.0,105120.0,0.47665]
[1737698293003,0.71554296,105130.0,105120.0,0.524315]
[1737698293829,0.61103907,105130.0,105120.0,0.524315]
[1737698294499,0.61103907,105130.0,105120.0,0.47665]
[1737698296008,0.60103907,105130.0,105120.0,0.47665]
[1737698296793,0.60103907,105130.0,105120.0,0.47694841]
[1737698296996,0.50369178,105130.0,105120.0,0.47694841]
[1737698297967,0.60103907,105130.0,105120.0,0.47694841]
[1737698298139,0.60103907,105130.0,105120.0,0.52464325]
[1737698298561,0.86895608,105140.0,105130.0,0.15]
[1737698298562,0.00963608,105140.0,105130.0,0.15]
[1737698298784,0.00029007,105140.0,105130.0,0.94906729]
[1737698299228,0.00029007,105140.0,105130.0,0.95913568]
[1737698299591,0.00029007,105140.0,105130.0,0.98213568]
[1737698299811,0.00029007,105140.0,105130.0,1.62673957]
[1737698300153,0.00029007,105140.0,105130.0,1.50823568]
[1737698300342,0.01025731,105150.0,105140.0,0.291611]
[1737698300544,0.01025731,105150.0,105140.0,0.94091829]
[1737698301092,0.01025731,105150.0,105140.0,0.96391829]
[1737698301307,0.15355522,105170.0,105160.0,0.381193]
[1737698301519,0.15346767,105170.0,105160.0,1.59861418]
[1737698301727,0.15346767,105170.0,105160.0,1.66476087]
[1737698301936,0.15346767,105170.0,105160.0,1.6942174]
[1737698302354,0.10346767,105170.0,105160.0,1.6942174]
[1737698302526,0.00115016,105180.0,105170.0,0.278084]
[1737698302752,0.00129805,105180.0,105170.0,1.03045518]
[1737698303328,0.00129805,105180.0,105170.0,1.07875518]
[1737698303728,0.00129805,105180.0,105170.0,0.96425129]
[1737698304064,0.00129805,105180.0,105170.0,0.79125129]
[1737698304269,0.00129805,105180.0,105170.0,0.95025129]
[1737698304470,0.00129805,105180.0,105170.0,0.97325129]
[1737698304671,0.00129805,105180.0,105170.0,0.97725129]
[1737698306691,0.00129805,105180.0,105170.0,0.95425129]
[1737698307232,0.00129805,105180.0,105170.0,0.68085129]
[1737698307633,0.00129805,105180.0,105170.0,0.83085129]
[1737698312607,0.00129805,105180.0,105170.0,0.73576729]
[1737698313011,0.00129805,105180.0,105170.0,0.84985129]
[1737698313189,0.00129805,105180.0,105170.0,0.93485129]
[1737698313413,0.00129805,105180.0,105170.0,0.91985129]
[1737698313796,0.00129805,105180.0,105170.0,0.92185129]
[1737698314013,0.00129805,105180.0,105170.0,0.91585129]
[1737698314217,0.00129805,105180.0,105170.0,0.91985129]
[1737698314584,0.00129805,105180.0,105170.0,0.93885129]
[1737698314788,0.00129805,105180.0,105170.0,1.1296456]
[1737698315233,0.00129805,105180.0,105170.0,0.97345129]
[1737698316080,0.00129805,105180.0,105170.0,0.97745129]
[1737698316300,0.00129805,105180.0,105170.0,0.98645129]
[1737698316506,0.00129805,105180.0,105170.0,1.83655129]
[1737698316856,0.00129805,105180.0,105170.0,1.84955129]
[1737698318199,0.00129805,105180.0,105170.0,1.86832387]
[1737698318544,0.00129805,105180.0,105170.0,2.03409091]
[1737698319179,0.0001422,105190.0,105180.0,0.268075]
[1737698319386,0.0001422,105190.0,105180.0,0.84080229]
[1737698319793,0.0001422,105190.0,105180.0,1.17380229]
[1737698320368,0.0001422,105190.0,105180.0,1.18680229]
[1737698322462,0.0001422,105190.0,105180.0,1.3429966]
[1737698323093,2e-07,105190.0,105180.0,1.51570124]
[1737698323497,2e-07,105190.0,105180.0,1.51470124]
[1737698323768,2e-07,105190.0,105180.0,1.56660137]
[1737698323972,2e-07,105190.0,105180.0,1.56260137]
[1737698324219,2e-07,105190.0,105180.0,1.44955415]
[1737698324423,2e-07,105190.0,105180.0,1.45855415]
[1737698325269,2e-07,105190.0,105180.0,1.46255415]
[1737698325692,2e-07,105190.0,105180.0,1.45855415]
[1737698326117,2e-07,105190.0,105180.0,1.35850693]
[1737698326332,2e-07,105190.0,105180.0,1.33850693]
[1737698326565,2e-07,105190.0,105180.0,1.42316341]
[1737698326774,2e-07,105190.0,105180.0,1.44316341]
[1737698327212,2e-07,105190.0,105180.0,1.54721063]
[1737698328989,2e-07,105190.0,105180.0,1.45255415]
[1737698329196,2e-07,105190.0,105180.0,1.46255415]
[1737698329960,2e-07,105190.0,105180.0,1.35850693]
[1737698330083,2e-07,105190.0,105180.0,1.46255415]
[1737698331332,2e-07,105190.0,105180.0,1.46285235]
[1737698332544,2e-07,105190.0,105180.0,2.86625235]
[1737698332756,2e-07,105190.0,105180.0,2.86577033]
[1737698333488,2e-07,105190.0,105180.0,2.96981755]
[1737698333810,2e-07,105190.0,105180.0,3.05447403]
[1737698334246,0.45220575,105200.0,105190.0,0.275066]
[1737698334435,0.45220575,105200.0,105190.0,0.98099515]
[1737698334918,0.45220575,105200.0,105190.0,1.01551515]
[1737698335229,0.45220575,105200.0,105190.0,0.99551515]
[1737698335612,0.45220575,105200.0,105190.0,1.80816631]
[1737698336227,0.45220575,105200.0,105190.0,1.82703125]
[1737698336667,0.45220575,105200.0,105190.0,1.83603125]
[1737698337029,0.45220575,105200.0,105190.0,1.82703125]
[1737698337232,0.41418375,105200.0,105190.0,1.83603125]
[1737698337421,0.41418375,105200.0,105190.0,1.83203125]
[1737698337932,0.41418375,105200.0,105190.0,1.85203125]
[1737698337933,0.33813975,105200.0,105190.0,1.85203125]
[1737698338148,0.33813975,105200.0,105190.0,3.04233125]
[1737698338358,0.34281081,105230.0,105220.0,0.2831]
[1737698338574,0.32326429,105230.0,105220.0,3.50429831]
[1737698338781,0.32341218,105230.0,105220.0,3.50429831]
[1737698339021,0.32341218,105230.0,105220.0,3.52729831]
[1737698339439,0.32341218,105230.0,105220.0,3.54729831]
[1737698339856,0.32341218,105230.0,105220.0,2.69627993]
[1737698340065,0.32341218,105230.0,105220.0,2.58217993]
[1737698340706,0.32341218,105230.0,105220.0,1.71887993]
[1737698341356,0.32341218,105230.0,105220.0,1.72287993]
[1737698342603,0.32341218,105230.0,105220.0,0.85977993]
[1737698343181,0.32355418,105230.0,105220.0,0.85977993]
[1737698343437,0.4276014,105230.0,105220.0,0.58553729]
[1737698343698,0.4276014,105230.0,105220.0,0.68057529]
[1737698343894,0.4276014,105230.0,105220.0,0.83057529]
[1737698344098,0.32355418,105230.0,105220.0,0.85595571]
[1737698344337,0.32355418,105230.0,105220.0,0.84695571]
[1737698344537,0.32355418,105230.0,105220.0,0.85595571]
[1737698345089,0.32355418,105230.0,105220.0,0.85995571]
[1737698345328,0.32355418,105230.0,105220.0,0.88295571]
[1737698345547,0.32355418,105230.0,105220.0,1.07250293]
[1737698345752,0.32355418,105230.0,105220.0,1.07650293]
[1737698345959,0.32355418,105230.0,105220.0,1.06750293]
[1737698346183,0.32355418,105230.0,105220.0,1.07650293]
[1737698346415,0.32355418,105230.0,105220.0,2.79390293]
[1737698346608,0.32355418,105230.0,105220.0,2.81390293]
[1737698346805,0.32355418,105230.0,105220.0,2.82290293]
[1737698347499,0.32355418,105230.0,105220.0,3.50535409]
[1737698347698,0.32355418,105230.0,105220.0,3.53135409]
[1737698347912,0.32355418,105230.0,105220.0,3.57366127]
[1737698348145,0.32355418,105230.0,105220.0,3.57766127]
[1737698348323,0.32355418,105230.0,105220.0,3.59638185]
[1737698349291,0.20478372,105230.0,105220.0,3.59638185]
[1737698350073,0.20478372,105230.0,105220.0,3.63645742]
[1737698350765,0.20478372,105230.0,105220.0,3.63245742]
[1737698351055,0.20478372,105230.0,105220.0,3.63645742]
[1737698351421,0.20478372,105230.0,105220.0,3.61791774]
[1737698352039,0.20478372,105230.0,105220.0,3.60891774]
[1737698352484,0.20478372,105230.0,105220.0,3.61791774]
[1737698353535,0.20478372,105230.0,105220.0,3.58791774]
[1737698353845,0.20478372,105230.0,105220.0,3.57790185]
[1737698354242,0.20478372,105230.0,105220.0,3.57819984]
[1737698355094,0.20478372,105230.0,105220.0,3.57815984]
[1737698356063,0.20478372,105230.0,105220.0,3.58816482]
[1737698357709,0.20478372,105230.0,105220.0,2.18476482]
[1737698357911,0.20478372,105230.0,105220.0,3.07806482]
[1737698358430,0.20478372,105230.0,105220.0,3.05806482]
[1737698358632,0.20478372,105230.0,105220.0,3.07806482]
[1737698359202,0.20478372,105230.0,105220.0,3.05806482]
[1737698359406,0.20478372,105230.0,105220.0,3.07806482]
[1737698359834,0.20478372,105230.0,105220.0,3.10807656]
[1737698360216,0.06601762,105230.0,105220.0,3.64817656]
[1737698360428,0.04489047,105230.0,105220.0,3.64817656]
[1737698360627,0.02545012,105230.0,105220.0,3.64817656]
[1737698361262,0.02545012,105230.0,105220.0,3.63416184]
[1737698363996,0.00922621,105250.0,105240.0,0.09502]
[1737698364202,0.00971899,105250.0,105240.0,0.84684771]
[1737698365621,0.00971899,105250.0,105240.0,0.85584771]
[1737698365901,0.00971899,105250.0,105240.0,0.88184971]
[1737698366239,0.00971899,105250.0,105240.0,0.88584971]
[1737698367263,0.00971899,105250.0,105240.0,0.86985269]
[1737698368186,0.00971899,105250.0,105240.0,0.87945284]
[1737698369359,0.00971899,105250.0,105240.0,0.96376943]
[1737698369587,0.09031899,105250.0,105240.0,0.93438901]
[1737698369850,0.13883149,105250.0,105240.0,0.93438901]
[1737698370101,0.13883149,105250.0,105240.0,0.77478886]
[1737698370364,0.13883149,105250.0,105240.0,0.92478886]
[1737698371603,0.13883149,105250.0,105240.0,0.94081097]
[1737698372034,0.13883149,105250.0,105240.0,0.85649438]
[1737698373623,0.13883149,105250.0,105240.0,0.76147438]
[1737698373831,0.24283509,105250.0,105240.0,0.85649438]
[1737698374247,0.24283509,105250.0,105240.0,0.59545227]
[1737698374680,0.13883149,105250.0,105240.0,0.59545227]
[1737698374894,0.13883149,105250.0,105240.0,0.74545227]
[1737698376380,0.13883149,105250.0,105240.0,0.84047227]
[1737698377042,0.13883149,105250.0,105240.0,0.87254468]
[1737698377899,0.13883149,105250.0,105240.0,0.77752468]
[1737698378099,0.13883149,105250.0,105240.0,0.77782267]
[1737698379121,0.33784609,105250.0,105240.0,0.77782267]
[1737698379606,0.24283509,105250.0,105240.0,0.77782267]
[1737698380414,0.24283509,105250.0,105240.0,0.76178532]
[1737698380756,0.33784609,105250.0,105240.0,0.76178532]
[1737698381131,0.33784609,105250.0,105240.0,0.75911519]
[1737698381761,0.13883149,105250.0,105240.0,0.75911519]
[1737698382340,0.33784609,105250.0,105240.0,0.75911519]
[1737698382539,0.33784609,105250.0,105240.0,0.66443803]
[1737698389332,0.33784609,105250.0,105240.0,0.65543803]
[1737698389509,0.33784609,105250.0,105240.0,0.65143803]
[1737698389708,0.24283509,105250.0,105240.0,0.66043803]
[1737698389974,0.33784609,105250.0,105240.0,0.65543803]
[1737698390160,0.35645244,105250.0,105240.0,0.65543803]
[1737698390385,0.35645244,105250.0,105240.0,0.65943803]
[1737698391227,0.33784609,105250.0,105240.0,0.65943803]
[1737698391462,0.33784609,105250.0,105240.0,0.65543803]
[1737698391627,0.33784609,105250.0,105240.0,0.65743803]
[1737698396207,0.56219698,105250.0,105240.0,0.50743803]
[1737698396396,0.59219698,105250.0,105240.0,0.03233803]
[1737698397348,0.48819338,105250.0,105240.0,0.00429799]
[1737698398054,0.48819338,105250.0,105240.0,0.00029799]
[1737698398479,0.43519338,105250.0,105240.0,0.00029799]
[1737698398705,0.45519338,105250.0,105240.0,0.00029799]
[1737698398914,0.43519338,105250.0,105240.0,0.00029799]
[1737698399325,0.23384249,105250.0,105240.0,0.00029799]
[1737698399546,0.23384249,105250.0,105240.0,0.15029799]
[1737698399975,0.23384249,105250.0,105240.0,0.15129799]
[1737698400398,0.13883149,105250.0,105240.0,0.24631799]
[1737698400607,0.00963149,105250.0,105240.0,0.34466528]
[1737698401246,0.00963149,105250.0,105240.0,0.37071531]
[1737698401661,0.00963149,105250.0,105240.0,0.36971531]
[1737698401864,0.00963149,105250.0,105240.0,0.36871531]
[1737698402068,0.10464249,105250.0,105240.0,0.18934802]
[1737698402274,0.20864609,105250.0,105240.0,0.18034802]
[1737698402697,0.20864609,105250.0,105240.0,0.20939288]
[1737698402905,0.20864609,105250.0,105240.0,0.20039288]
[1737698403319,0.20864609,105250.0,105240.0,0.20339288]
[1737698403531,0.29124609,105250.0,105240.0,0.20339288]
[1737698403732,0.29124609,105250.0,105240.0,0.20639288]
[1737698403929,0.29124609,105250.0,105240.0,0.18634802]
[1737698404161,0.33884609,105250.0,105240.0,0.03634802]
[1737698404376,0.13983149,105250.0,105240.0,0.03634802]
[1737698404587,0.00963149,105250.0,105240.0,0.37871531]
[1737698404798,0.00963149,105250.0,105240.0,0.58782731]
[1737698404980,0.00963149,105250.0,105240.0,0.56177728]
[1737698405426,0.00963149,105250.0,105240.0,0.58783847]
[1737698405628,0.00963149,105250.0,105240.0,0.58083847]
[1737698405834,0.00963149,105250.0,105240.0,0.58983847]
[1737698406043,0.00963149,105250.0,105240.0,0.48583487]
[1737698406222,0.00963149,105250.0,105240.0,0.47683487]
[1737698406432,0.00963149,105250.0,105240.0,0.48283487]
[1737698406634,0.00963149,105250.0,105240.0,0.40713487]
[1737698406858,0.00963149,105250.0,105240.0,0.41113487]
[1737698407087,0.00963149,105250.0,105240.0,0.38172647]
[1737698407299,0.00963149,105250.0,105240.0,0.37772647]
[1737698407515,0.00963149,105250.0,105240.0,0.38172647]
[1737698407739,0.00963149,105250.0,105240.0,0.37272647]
[1737698407889,0.00963149,105250.0,105240.0,0.2914112]
[1737698408093,0.10464249,105250.0,105240.0,0.0513912]
[1737698408302,0.00963149,105250.0,105240.0,0.24775849]
[1737698408874,0.00963149,105250.0,105240.0,0.39775849]
[1737698409079,0.00963149,105250.0,105240.0,0.42716139]
[1737698409229,0.00963149,105250.0,105240.0,0.53116499]
[1737698409427,0.00963149,105250.0,105240.0,0.52216499]
[1737698409630,0.00963149,105250.0,105240.0,0.60096499]
[1737698409837,0.00963149,105250.0,105240.0,0.61396499]
[1737698410421,0.00963149,105250.0,105240.0,0.60996499]
[1737698410623,0.00963149,105250.0,105240.0,0.61396499]
[1737698410823,0.00963149,105250.0,105240.0,0.59793297]
[1737698411121,0.00963149,105250.0,105240.0,0.58893297]
[1737698411337,0.00963149,105250.0,105240.0,0.58493297]
[1737698411536,0.00963149,105250.0,105240.0,0.59793297]
[1737698411815,0.00963149,105250.0,105240.0,0.58893297]
[1737698412262,0.00963149,105250.0,105240.0,0.70193657]
[1737698412485,0.00963149,105250.0,105240.0,0.71136537]
[1737698412889,0.33999921,105260.0,105250.0,0.15]
[1737698413070,0.33999921,105260.0,105250.0,0.47576479]
[1737698414194,0.33999921,105260.0,105250.0,0.47976479]
[1737698414560,0.33999921,105260.0,105250.0,0.48876479]
[1737698414761,0.33999921,105260.0,105250.0,0.53484266]
[1737698415702,0.33999921,105260.0,105250.0,0.53533544]
[1737698417964,0.33999921,105260.0,105250.0,0.43133184]
[1737698418172,0.33999921,105260.0,105250.0,0.40192894]
[1737698422543,0.33999921,105260.0,105250.0,0.48631456]
[1737698422980,0.33999921,105260.0,105250.0,0.59031816]
[1737698423150,0.33999921,105260.0,105250.0,0.66909113]
[1737698423758,0.33999921,105260.0,105250.0,0.75049113]
[1737698425170,0.33999921,105260.0,105250.0,0.64648753]
[1737698426385,0.33999921,105260.0,105250.0,0.61721456]
[1737698426596,0.33999921,105260.0,105250.0,0.75047664]
[1737698427121,0.33999921,105260.0,105250.0,0.75077526]
[1737698427355,0.34014141,105260.0,105250.0,0.75077526]
[1737698428497,0.34014141,105260.0,105250.0,0.74677526]
[1737698428884,0.29739344,105260.0,105250.0,0.74177526]
[1737698429486,0.29739344,105260.0,105250.0,0.63777166]
[1737698430233,0.29739344,105260.0,105250.0,0.64677166]
[1737698431397,0.29739344,105260.0,105250.0,0.56238604]
[1737698432400,0.29739344,105260.0,105250.0,0.57169657]
[1737698432609,0.29739344,105260.0,105250.0,3.29310795]
[1737698432610,0.03104469,105260.0,105250.0,3.29310795]
[1737698432818,0.15161924,105280.0,105270.0,0.01]
[1737698433026,0.15161924,105280.0,105270.0,0.73900597]
[1737698433253,0.15161924,105280.0,105270.0,0.65500237]
[1737698433483,0.15161924,105280.0,105270.0,0.65668237]
[1737698433715,0.15161924,105280.0,105270.0,0.63368237]
[1737698433962,0.15161924,105280.0,105270.0,0.62200237]
[1737698434169,0.15161924,105280.0,105270.0,0.49799877]
[1737698434392,0.15161924,105280.0,105270.0,0.42639855]
[1737698434507,0.15161924,105280.0,105270.0,0.39714007]
[1737698435275,0.15161924,105280.0,105270.0,0.86309007]